[Event "Schack-SM 2022: Mastarklassen-Elit"]
[Site "Fyrishov, Idrottsgatan 2, Uppsala, Sweden"]
[Date "2022.07.05"]
[Round "4.1"]
[White "Furhoff, Johan"]
[Black "Wiedenkeller, Michael"]
[Result "0-1"]
[TimeControl "90 minutes for 40 moves + 30 minutes for the rest of the game + 30 seconds per move from move one."]
[WhiteTitle "IM"]
[BlackTitle "IM"]
[WhiteFideId "1701797"]
[BlackFideId "1700146"]
[WhiteElo "2348"]
[BlackElo "2437"]

1. e4 {[%clk 01:30:59]} e5 {[%clk 01:30:27]} {[%emt 00:00:34]} 2. Nf3 {[%clk
01:30:21]} {[%emt 00:01:08]} Nc6 {[%clk 01:30:48]} {[%emt 00:00:09]} 3. Bc4
{[%clk 01:30:44]} {[%emt 00:00:07]} Bc5 {[%clk 01:30:50]} {[%emt 00:00:28]} 4.
c3 {[%clk 01:30:57]} {[%emt 00:00:18]} Nf6 {[%clk 01:31:01]} {[%emt 00:00:18]}
5. d3 {[%clk 01:31:20]} {[%emt 00:00:08]} O-O {[%clk 01:30:43]} {[%emt
00:00:46]} 6. O-O {[%clk 01:31:20]} {[%emt 00:00:31]} d5 {[%clk 01:30:35]}
{[%emt 00:00:38]} 7. exd5 {[%clk 01:31:25]} {[%emt 00:00:25]} Nxd5 {[%clk
01:30:57]} {[%emt 00:00:08]} 8. Re1 {[%clk 01:30:48]} {[%emt 00:01:07]} Bg4
{[%clk 01:30:09]} {[%emt 00:01:18]} 9. h3 {[%clk 01:30:23]} {[%emt 00:00:55]}
Bh5 {[%clk 01:30:26]} {[%emt 00:00:12]} 10. Nbd2 {[%clk 01:29:46]} {[%emt
00:01:08]} Nb6 {[%clk 01:24:54]} {[%emt 00:06:01]} 11. Bb5 {[%clk 01:28:33]}
{[%emt 00:01:44]} Bd6 {[%clk 01:08:47]} {[%emt 00:16:37]} 12. Ne4 {[%clk
01:22:08]} {[%emt 00:06:54]} f5 {[%clk 01:03:11]} {[%emt 00:06:06]} 13. Ng3
{[%clk 01:06:58]} {[%emt 00:15:41]} Bxf3 {[%clk 00:59:56]} {[%emt 00:03:45]} 14.
Qxf3 {[%clk 01:06:50]} {[%emt 00:00:37]} Qd7 {[%clk 00:57:10]} {[%emt
00:03:16]} 15. Bxc6 {[%clk 01:01:48]} {[%emt 00:05:33]} bxc6 {[%clk 00:56:27]}
{[%emt 00:01:14]} 16. Bd2 {[%clk 00:58:55]} {[%emt 00:03:22]} Rae8 {[%clk
00:55:40]} {[%emt 00:01:17]} 17. Rad1 {[%clk 00:57:39]} {[%emt 00:01:46]} Nd5
{[%clk 00:52:56]} {[%emt 00:03:13]} 18. Bc1 {[%clk 00:53:03]} {[%emt 00:05:07]}
Qf7 {[%clk 00:42:16]} {[%emt 00:11:09]} 19. Nf1 {[%clk 00:42:30]} {[%emt
00:11:04]} Qg6 {[%clk 00:39:20]} {[%emt 00:03:26]} 20. Ne3 {[%clk 00:41:09]}
{[%emt 00:01:51]} e4 {[%clk 00:31:04]} {[%emt 00:08:46]} 21. dxe4 {[%clk
00:38:02]} {[%emt 00:03:37]} fxe4 {[%clk 00:31:22]} {[%emt 00:00:12]} 22. Qg4
{[%clk 00:37:48]} {[%emt 00:00:44]} Qf7 {[%clk 00:30:17]} {[%emt 00:01:34]} 23.
Rf1 {[%clk 00:36:02]} {[%emt 00:02:17]} Nf4 {[%clk 00:27:28]} {[%emt 00:03:19]}
24. Rd4 {[%clk 00:27:52]} {[%emt 00:08:39]} h5 {[%clk 00:26:02]} {[%emt
00:01:56]} 25. Qd1 {[%clk 00:27:36]} {[%emt 00:00:47]} Qg6 {[%clk 00:26:04]}
{[%emt 00:00:28]} 26. Kh1 {[%clk 00:23:07]} {[%emt 00:04:59]} Nxh3 {[%clk
00:17:18]} {[%emt 00:09:17]} 27. Rxd6 {[%clk 00:20:36]} {[%emt 00:03:00]} cxd6
{[%clk 00:17:32]} {[%emt 00:00:16]} 28. gxh3 {[%clk 00:20:58]} {[%emt
00:00:08]} Rf3 {[%clk 00:17:41]} {[%emt 00:00:20]} 29. Kh2 {[%clk 00:20:46]}
{[%emt 00:00:42]} Qe6 {[%clk 00:17:39]} {[%emt 00:00:33]} 30. Ng2 {[%clk
00:18:37]} {[%emt 00:02:39]} Qxh3+ {[%clk 00:16:36]} {[%emt 00:01:34]} 31. Kg1
{[%clk 00:18:59]} {[%emt 00:00:07]} Re6 {[%clk 00:15:04]} {[%emt 00:02:02]} 32.
Qb3 {[%clk 00:19:11]} {[%emt 00:00:18]} Kh7 {[%clk 00:13:57]} {[%emt 00:01:37]}
33. Nf4 {[%clk 00:12:44]} {[%emt 00:06:56]} Rg6+ {[%clk 00:13:10]} {[%emt
00:01:18]} 0-1

[Event "Schack-SM 2022: Mastarklassen-Elit"]
[Site "Fyrishov, Idrottsgatan 2, Uppsala, Sweden"]
[Date "2022.07.05"]
[Round "4.2"]
[White "Johansson, Jan"]
[Black "Engqvist, Thomas"]
[Result "1/2-1/2"]
[TimeControl "90 minutes for 40 moves + 30 minutes for the rest of the game + 30 seconds per move from move one."]
[WhiteTitle "IM"]
[BlackTitle "IM"]
[WhiteFideId "1700103"]
[BlackFideId "1700332"]
[WhiteElo "2306"]
[BlackElo "2330"]

1. d4 {[%clk 01:30:51]} {[%emt 00:00:08]} Nf6 {[%clk 01:30:52]} {[%emt
00:00:08]} 2. Nf3 {[%clk 01:31:10]} {[%emt 00:00:11]} e6 {[%clk 01:30:45]}
{[%emt 00:00:37]} 3. c4 {[%clk 01:30:42]} {[%emt 00:00:58]} b6 {[%clk
01:30:20]} {[%emt 00:00:55]} 4. Bg5 {[%clk 01:28:54]} {[%emt 00:02:17]} Bb7
{[%clk 01:30:11]} {[%emt 00:00:40]} 5. e3 {[%clk 01:28:46]} {[%emt 00:00:38]}
Be7 {[%clk 01:30:19]} {[%emt 00:00:21]} 6. Nc3 {[%clk 01:28:34]} {[%emt
00:00:42]} Ne4 {[%clk 01:29:09]} {[%emt 00:01:40]} 7. Nxe4 {[%clk 01:20:06]}
{[%emt 00:08:59]} Bxe4 {[%clk 01:29:33]} {[%emt 00:00:06]} 8. Nd2 {[%clk
01:20:15]} {[%emt 00:00:20]} Bb7 {[%clk 01:28:37]} {[%emt 00:01:26]} 9. Bf4
{[%clk 01:20:33]} {[%emt 00:00:12]} d6 {[%clk 01:25:32]} {[%emt 00:03:36]} 10.
Be2 {[%clk 01:09:15]} {[%emt 00:11:48]} Nd7 {[%clk 01:21:45]} {[%emt 00:04:16]}
11. Bf3 {[%clk 01:06:18]} {[%emt 00:03:27]} Bxf3 {[%clk 01:19:06]} {[%emt
00:03:10]} 12. Nxf3 {[%clk 01:06:40]} {[%emt 00:00:07]} Bf6 {[%clk 01:06:32]}
{[%emt 00:13:04]} 13. Qa4 {[%clk 00:57:03]} {[%emt 00:10:08]} O-O {[%clk
01:01:22]} {[%emt 00:00:29]} 14. O-O {[%clk 00:57:32]} Re8 {[%clk 00:59:32]}
{[%emt 00:07:32]} 15. Qc6 {[%clk 00:50:28]} {[%emt 00:07:34]} a5 {[%clk
00:52:38]} {[%emt 00:07:25]} 16. Bg3 {[%clk 00:50:29]} {[%emt 00:00:28]} Rc8
{[%clk 00:41:50]} {[%emt 00:11:18]} 17. a3 {[%clk 00:43:34]} {[%emt 00:07:26]}
Ra8 {[%clk 00:37:11]} {[%emt 00:05:08]} 18. Rfd1 {[%clk 00:38:21]} {[%emt
00:05:42]} a4 {[%clk 00:36:09]} {[%emt 00:01:33]} 19. Rac1 {[%clk 00:29:36]}
{[%emt 00:09:14]} Ra5 {[%clk 00:35:36]} {[%emt 00:01:04]} 20. Rc2 {[%clk
00:29:20]} {[%emt 00:00:45]} Nb8 {[%clk 00:33:05]} {[%emt 00:03:01]} 21. Qe4
{[%clk 00:27:21]} {[%emt 00:02:29]} Nd7 {[%clk 00:33:22]} {[%emt 00:00:14]} 22.
Qg4 {[%clk 00:23:58]} {[%emt 00:03:53]} h5 {[%clk 00:27:18]} {[%emt 00:06:35]}
23. Qe4 {[%clk 00:16:56]} {[%emt 00:07:31]} e5 {[%clk 00:21:18]} {[%emt
00:06:30]} 24. dxe5 {[%clk 00:17:18]} {[%emt 00:00:08]} Nxe5 {[%clk 00:21:23]}
{[%emt 00:00:26]} 25. Bxe5 {[%clk 00:16:54]} {[%emt 00:00:53]} Bxe5 {[%clk
00:21:31]} {[%emt 00:00:22]} 26. Qc6 {[%clk 00:17:04]} {[%emt 00:00:20]} Bf6
{[%clk 00:21:19]} {[%emt 00:00:42]} 27. Rd5 {[%clk 00:14:52]} {[%emt 00:02:42]}
Qa8 {[%clk 00:21:09]} {[%emt 00:00:40]} 28. Qd7 {[%clk 00:15:05]} {[%emt
00:00:17]} Re7 {[%clk 00:15:29]} {[%emt 00:06:10]} 29. Qf5 {[%clk 00:12:32]}
{[%emt 00:03:03]} h4 {[%clk 00:11:55]} {[%emt 00:04:04]} 30. g4 {[%clk
00:07:36]} {[%emt 00:05:26]} hxg3 {[%clk 00:11:59]} {[%emt 00:00:27]} 31. hxg3
{[%clk 00:07:57]} {[%emt 00:00:08]} Be5 {[%clk 00:09:52]} {[%emt 00:02:37]} 32.
Rxa5 {[%clk 00:08:05]} {[%emt 00:00:23]} bxa5 {[%clk 00:08:43]} {[%emt
00:01:39]} 33. c5 {[%clk 00:07:50]} {[%emt 00:00:43]} g6 {[%clk 00:07:49]}
{[%emt 00:01:25]} 34. Qg4 {[%clk 00:08:07]} {[%emt 00:00:12]} dxc5 {[%clk
00:06:01]} {[%emt 00:02:20]} 35. Nd2 {[%clk 00:04:16]} {[%emt 00:04:20]} Qc6
{[%clk 00:04:53]} {[%emt 00:01:38]} 36. Nc4 {[%clk 00:03:49]} {[%emt 00:00:57]}
Bd6 {[%clk 00:02:35]} {[%emt 00:02:49]} 37. Rd2 {[%clk 00:04:13]} {[%emt
00:00:05]} Kg7 {[%clk 00:02:09]} {[%emt 00:00:57]} 38. Nxa5 {[%clk 00:04:03]}
{[%emt 00:00:39]} Qb5 {[%clk 00:01:30]} {[%emt 00:01:09]} 39. Nc4 {[%clk
00:04:14]} {[%emt 00:00:18]} Re6 {[%clk 00:01:27]} {[%emt 00:00:34]} 40. Qe2
{[%clk 00:03:02]} {[%emt 00:01:41]} Be7 {[%clk 00:00:57]} {[%emt 00:01:01]} 41.
Qd3 {[%clk 00:29:21]} {[%emt 00:04:11]} Bf6 {[%clk 00:30:16]} {[%emt 00:01:11]}
42. Qd5 {[%clk 00:26:02]} {[%emt 00:03:49]} Re7 {[%clk 00:28:57]} {[%emt
00:01:49]} 43. Kg2 {[%clk 00:17:15]} {[%emt 00:09:16]} Re8 {[%clk 00:27:50]}
{[%emt 00:01:37]} 44. Qd7 {[%clk 00:14:14]} {[%emt 00:03:31]} Qb7+ {[%clk
00:27:36]} {[%emt 00:00:45]} 45. Qd5 {[%clk 00:14:24]} {[%emt 00:00:20]} Qb5
{[%clk 00:27:20]} {[%emt 00:00:46]} 46. Qd7 {[%clk 00:14:45]} {[%emt 00:00:08]}
Qb7+ {[%clk 00:27:45]} {[%emt 00:00:06]} 47. Qd5 {[%clk 00:15:07]} {[%emt
00:00:05]} 1/2-1/2

[Event "Schack-SM 2022: Mastarklassen-Elit"]
[Site "Fyrishov, Idrottsgatan 2, Uppsala, Sweden"]
[Date "2022.07.05"]
[Round "4.3"]
[White "Ernst, Thomas"]
[Black "Andersson, Tommy"]
[Result "1-0"]
[TimeControl "90 minutes for 40 moves + 30 minutes for the rest of the game + 30 seconds per move from move one."]
[WhiteTitle "GM"]
[BlackTitle "IM"]
[WhiteFideId "1700065"]
[BlackFideId "1703803"]
[WhiteElo "2289"]
[BlackElo "2384"]

1. d4 {[%clk 01:30:55]} {[%emt 00:00:05]} Nf6 {[%clk 01:28:01]} {[%emt
00:03:00]} 2. c4 {[%clk 01:31:16]} {[%emt 00:00:08]} e6 {[%clk 01:28:28]}
{[%emt 00:00:03]} 3. Nc3 {[%clk 01:31:33]} {[%emt 00:00:13]} d5 {[%clk
01:28:38]} {[%emt 00:00:20]} 4. Bg5 {[%clk 01:31:49]} {[%emt 00:00:13]} Be7
{[%clk 01:28:44]} {[%emt 00:00:24]} 5. e3 {[%clk 01:31:56]} {[%emt 00:00:23]}
O-O {[%clk 01:28:03]} {[%emt 00:01:11]} 6. Nf3 {[%clk 01:32:12]} {[%emt
00:00:14]} h6 {[%clk 01:26:16]} {[%emt 00:02:17]} 7. Bh4 {[%clk 01:32:32]}
{[%emt 00:00:11]} b6 {[%clk 01:26:02]} {[%emt 00:00:44]} 8. Qc2 {[%clk
01:32:26]} {[%emt 00:00:36]} Bb7 {[%clk 01:22:52]} {[%emt 00:03:40]} 9. Bxf6
{[%clk 01:30:39]} {[%emt 00:02:16]} Bxf6 {[%clk 01:23:16]} {[%emt 00:00:07]} 10.
cxd5 {[%clk 01:31:02]} {[%emt 00:00:07]} exd5 {[%clk 01:23:19]} {[%emt
00:00:26]} 11. g4 {[%clk 01:30:12]} {[%emt 00:01:20]} c5 {[%clk 01:17:47]}
{[%emt 00:06:02]} 12. O-O-O {[%clk 01:30:17]} {[%emt 00:00:26]} cxd4 {[%clk
01:13:39]} {[%emt 00:04:37]} 13. exd4 {[%clk 01:30:39]} {[%emt 00:00:08]} Bc8
{[%clk 00:51:38]} {[%emt 00:22:32]} 14. Rg1 {[%clk 01:29:52]} {[%emt 00:01:15]}
Be6 {[%clk 00:51:42]} {[%emt 00:00:27]} 15. Bd3 {[%clk 01:15:58]} {[%emt
00:14:23]} Nc6 {[%clk 00:42:39]} {[%emt 00:09:34]} 16. Bf5 {[%clk 01:13:44]}
{[%emt 00:02:43]} Qd6 {[%clk 00:39:00]} {[%emt 00:04:10]} 17. Kb1 {[%clk
01:09:17]} {[%emt 00:04:57]} Nb4 {[%clk 00:32:21]} {[%emt 00:07:09]} 18. Qd2
{[%clk 01:08:29]} {[%emt 00:01:17]} Bxf5+ {[%clk 00:29:10]} {[%emt 00:03:42]}
19. gxf5 {[%clk 01:08:47]} {[%emt 00:00:12]} Kh7 {[%clk 00:28:36]} {[%emt
00:01:04]} 20. Rg4 {[%clk 01:00:45]} {[%emt 00:08:30]} Nc6 {[%clk 00:26:41]}
{[%emt 00:02:26]} 21. Rdg1 {[%clk 00:58:23]} {[%emt 00:02:52]} Rae8 {[%clk
00:26:26]} {[%emt 00:00:46]} 22. Ka1 {[%clk 00:53:42]} {[%emt 00:05:10]} a6
{[%clk 00:25:08]} {[%emt 00:01:49]} 23. h4 {[%clk 00:46:58]} {[%emt 00:07:13]}
b5 {[%clk 00:21:05]} {[%emt 00:04:34]} 24. Qd3 {[%clk 00:45:33]} {[%emt
00:01:55]} Kh8 {[%clk 00:19:38]} {[%emt 00:01:58]} 25. Ne2 {[%clk 00:39:51]}
{[%emt 00:06:09]} Nb4 {[%clk 00:15:54]} {[%emt 00:04:16]} 26. Qd2 {[%clk
00:39:58]} {[%emt 00:00:21]} Re4 {[%clk 00:14:47]} {[%emt 00:01:38]} 27. Ne5
{[%clk 00:37:34]} {[%emt 00:02:55]} Rxg4 {[%clk 00:03:09]} {[%emt 00:12:08]} 28.
Nxg4 {[%clk 00:37:15]} {[%emt 00:00:49]} Nc6 {[%clk 00:02:06]} {[%emt
00:01:33]} 29. Nxh6 {[%clk 00:33:09]} {[%emt 00:04:36]} Qb4 {[%clk 00:01:11]}
{[%emt 00:01:26]} 30. Qxb4 {[%clk 00:33:21]} {[%emt 00:00:17]} Nxb4 {[%clk
00:01:39]} {[%emt 00:00:02]} 31. Ng4 {[%clk 00:33:34]} {[%emt 00:00:15]} Nc2+
{[%clk 00:01:56]} {[%emt 00:00:14]} 32. Kb1 {[%clk 00:33:44]} {[%emt 00:00:21]}
Nxd4 {[%clk 00:02:23]} {[%emt 00:00:03]} 33. Nxd4 {[%clk 00:33:46]} {[%emt
00:00:28]} Bxd4 {[%clk 00:02:51]} {[%emt 00:00:02]} 34. Rd1 {[%clk 00:33:59]}
{[%emt 00:00:16]} Bb6 {[%clk 00:01:03]} {[%emt 00:02:19]} 35. Rxd5 {[%clk
00:34:17]} {[%emt 00:00:11]} Re8 {[%clk 00:01:02]} {[%emt 00:00:31]} 36. Rd6
{[%clk 00:33:08]} {[%emt 00:01:38]} Bc5 {[%clk 00:00:41]} {[%emt 00:00:53]} 37.
Rxa6 {[%clk 00:32:57]} {[%emt 00:00:40]} b4 {[%clk 00:00:37]} {[%emt 00:00:35]}
38. Rc6 {[%clk 00:32:23]} {[%emt 00:01:02]} Be7 {[%clk 00:00:36]} {[%emt
00:00:34]} 39. h5 {[%clk 00:25:57]} {[%emt 00:06:55]} Bf8 {[%clk 00:00:54]}
{[%emt 00:00:12]} 40. h6 {[%clk 00:21:52]} {[%emt 00:04:35]} gxh6 {[%clk
00:01:00]} {[%emt 00:00:24]} 41. Nxh6 {[%clk 00:22:08]} {[%emt 00:00:13]} Re1+
{[%clk 00:25:28]} {[%emt 00:06:03]} 42. Kc2 {[%clk 00:52:17]} {[%emt 00:00:20]}
Re2+ {[%clk 00:25:48]} {[%emt 00:00:11]} 43. Kb3 {[%clk 00:52:30]} {[%emt
00:00:17]} Rxf2 {[%clk 00:24:37]} {[%emt 00:01:42]} 44. Nxf7+ {[%clk 00:52:41]}
{[%emt 00:00:18]} Kg7 {[%clk 00:24:06]} {[%emt 00:01:01]} 45. Ng5 {[%clk
00:43:03]} {[%emt 00:10:06]} Be7 {[%clk 00:21:45]} {[%emt 00:02:52]} 46. Ne6+
{[%clk 00:39:43]} {[%emt 00:03:50]} Kf7 {[%clk 00:20:32]} {[%emt 00:01:43]} 47.
Nd4 {[%clk 00:39:44]} {[%emt 00:00:29]} Bf6 {[%clk 00:14:01]} {[%emt 00:07:02]}
48. Rc7+ {[%clk 00:39:39]} {[%emt 00:00:33]} Ke8 {[%clk 00:14:17]} {[%emt
00:00:16]} 49. Rc4 {[%clk 00:39:53]} {[%emt 00:00:15]} Rd2 {[%clk 00:11:51]}
{[%emt 00:02:57]} 50. Nc2 {[%clk 00:39:03]} {[%emt 00:01:19]} Rd3+ {[%clk
00:12:10]} {[%emt 00:00:12]} 51. Kxb4 {[%clk 00:39:22]} {[%emt 00:00:11]} Bxb2
{[%clk 00:12:35]} {[%emt 00:00:04]} 52. a4 {[%clk 00:35:38]} {[%emt 00:04:13]}
Bf6 {[%clk 00:09:35]} {[%emt 00:03:32]} 53. Rf4 {[%clk 00:34:28]} {[%emt
00:01:37]} Kd7 {[%clk 00:07:50]} {[%emt 00:02:18]} 54. Kb5 {[%clk 00:34:29]}
{[%emt 00:00:26]} Rd5+ {[%clk 00:06:51]} {[%emt 00:01:32]} 55. Kc4 {[%clk
00:34:45]} {[%emt 00:00:13]} Rd1 {[%clk 00:06:59]} {[%emt 00:00:23]} 56. Nb4
{[%clk 00:32:42]} {[%emt 00:02:31]} Kd6 {[%clk 00:04:02]} {[%emt 00:03:29]} 57.
a5 {[%clk 00:27:09]} {[%emt 00:06:02]} Rc1+ {[%clk 00:02:25]} {[%emt 00:02:08]}
58. Kb5 {[%clk 00:25:24]} {[%emt 00:02:14]} Rc5+ {[%clk 00:02:45]} {[%emt
00:00:11]} 59. Ka4 {[%clk 00:25:40]} {[%emt 00:00:13]} Rc1 {[%clk 00:02:37]}
{[%emt 00:00:39]} 60. Rf3 {[%clk 00:23:47]} {[%emt 00:02:22]} Rb1 {[%clk
00:01:30]} {[%emt 00:01:38]} 61. Kb5 {[%clk 00:18:20]} {[%emt 00:05:55]} Kc7
{[%clk 00:01:31]} {[%emt 00:00:31]} 62. Rf4 {[%clk 00:17:40]} {[%emt 00:01:08]}
Kb7 {[%clk 00:01:44]} {[%emt 00:00:19]} 63. Rc4 {[%clk 00:13:01]} {[%emt
00:05:08]} Be5 {[%clk 00:00:51]} {[%emt 00:01:24]} 64. a6+ {[%clk 00:11:42]}
{[%emt 00:01:48]} Kb8 {[%clk 00:01:02]} {[%emt 00:00:20]} 65. Kb6 {[%clk
00:10:00]} {[%emt 00:02:11]} Bc7+ {[%clk 00:01:03]} {[%emt 00:00:29]} 66. Rxc7
{[%clk 00:10:11]} {[%emt 00:00:20]} Rxb4+ {[%clk 00:01:28]} {[%emt 00:00:06]}
67. Ka5 {[%clk 00:10:34]} {[%emt 00:00:05]} Rf4 {[%clk 00:00:51]} {[%emt
00:01:08]} 68. Rf7 {[%clk 00:09:51]} {[%emt 00:01:11]} Rf1 {[%clk 00:01:13]}
{[%emt 00:00:09]} 69. Kb6 {[%clk 00:10:05]} {[%emt 00:00:16]} Rb1+ {[%clk
00:01:38]} {[%emt 00:00:06]} 70. Kc5 {[%clk 00:10:08]} {[%emt 00:00:25]} Ra1
{[%clk 00:01:40]} {[%emt 00:00:30]} 71. Rf6 {[%clk 00:10:19]} {[%emt 00:00:16]}
Ka7 {[%clk 00:02:01]} {[%emt 00:00:13]} 72. Kd5 {[%clk 00:10:27]} {[%emt
00:00:19]} Rf1 {[%clk 00:02:07]} {[%emt 00:00:24]} 73. Ke5 {[%clk 00:10:36]}
{[%emt 00:00:22]} Re1+ {[%clk 00:02:26]} {[%emt 00:00:12]} 74. Kf4 {[%clk
00:10:53]} {[%emt 00:00:12]} Rf1+ {[%clk 00:02:45]} {[%emt 00:00:12]} 75. Kg5
{[%clk 00:11:15]} {[%emt 00:00:07]} Rg1+ {[%clk 00:03:09]} {[%emt 00:00:07]} 76.
Kh6 {[%clk 00:11:38]} {[%emt 00:00:06]} Rf1 {[%clk 00:03:17]} {[%emt 00:00:23]}
77. Kg7 {[%clk 00:11:14]} {[%emt 00:00:53]} Rf2 {[%clk 00:03:39]} {[%emt
00:00:08]} 78. Rf8 {[%clk 00:11:17]} {[%emt 00:00:26]} Rg2 {[%clk 00:03:38]}
{[%emt 00:00:33]} 79. Kf7 {[%clk 00:11:30]} {[%emt 00:00:15]} Kxa6 {[%clk
00:04:05]} {[%emt 00:00:05]} 80. Rb8 {[%clk 00:10:44]} {[%emt 00:01:13]} Rf2
{[%clk 00:04:12]} {[%emt 00:00:26]} 81. f6 {[%clk 00:11:05]} {[%emt 00:00:08]}
Rf3 {[%clk 00:04:39]} {[%emt 00:00:04]} 82. Kg7 {[%clk 00:10:56]} {[%emt
00:00:36]} Ka7 {[%clk 00:05:07]} {[%emt 00:00:06]} 83. Rb1 {[%clk 00:11:07]}
{[%emt 00:00:17]} 1-0

[Event "Schack-SM 2022: Mastarklassen-Elit"]
[Site "Fyrishov, Idrottsgatan 2, Uppsala, Sweden"]
[Date "2022.07.05"]
[Round "4.4"]
[White "Thorn, Eric"]
[Black "Trost, Edvin"]
[Result "0-1"]
[TimeControl "90 minutes for 40 moves + 30 minutes for the rest of the game + 30 seconds per move from move one."]
[WhiteTitle "FM"]
[BlackTitle "FM"]
[WhiteFideId "1710729"]
[BlackFideId "1729519"]
[WhiteElo "2366"]
[BlackElo "2345"]

1. d4 {[%clk 01:30:57]} {[%emt 00:00:02]} Nf6 {[%clk 01:29:29]} {[%emt
00:01:31]} 2. c4 {[%clk 01:31:18]} {[%emt 00:00:09]} g6 {[%clk 01:29:40]}
{[%emt 00:00:20]} 3. Nc3 {[%clk 01:31:40]} {[%emt 00:00:07]} Bg7 {[%clk
01:30:05]} {[%emt 00:00:06]} 4. e4 {[%clk 01:31:48]} {[%emt 00:00:21]} d6
{[%clk 01:30:18]} {[%emt 00:00:16]} 5. Be2 {[%clk 01:31:52]} {[%emt 00:00:26]}
O-O {[%clk 01:30:25]} {[%emt 00:00:24]} 6. Nf3 {[%clk 01:32:17]} {[%emt
00:00:05]} e5 {[%clk 01:30:05]} {[%emt 00:00:51]} 7. d5 {[%clk 01:32:40]}
{[%emt 00:00:06]} a5 {[%clk 01:28:42]} {[%emt 00:01:54]} 8. Bg5 {[%clk
01:33:03]} {[%emt 00:00:06]} h6 {[%clk 01:28:58]} {[%emt 00:00:15]} 9. Be3
{[%clk 01:33:28]} {[%emt 00:00:05]} Ng4 {[%clk 01:28:12]} {[%emt 00:01:16]} 10.
Bd2 {[%clk 01:33:32]} {[%emt 00:00:26]} f5 {[%clk 01:27:48]} {[%emt 00:00:54]}
11. h3 {[%clk 01:33:52]} {[%emt 00:00:09]} Nf6 {[%clk 01:28:00]} {[%emt
00:00:18]} 12. exf5 {[%clk 01:34:17]} {[%emt 00:00:06]} gxf5 {[%clk 01:27:22]}
{[%emt 00:01:07]} 13. g4 {[%clk 01:34:05]} {[%emt 00:00:42]} fxg4 {[%clk
01:17:32]} {[%emt 00:10:21]} 14. hxg4 {[%clk 01:34:20]} {[%emt 00:00:14]} Nxg4
{[%clk 01:17:34]} {[%emt 00:00:28]} 15. Ne4 {[%clk 01:34:27]} {[%emt 00:00:23]}
Bf5 {[%clk 01:09:19]} {[%emt 00:08:47]} 16. Bd3 {[%clk 01:32:16]} {[%emt
00:02:40]} Nd7 {[%clk 00:57:27]} {[%emt 00:12:23]} 17. Qc2 {[%clk 01:23:53]}
{[%emt 00:08:52]} c6 {[%clk 00:45:46]} {[%emt 00:12:11]} 18. O-O-O {[%clk
00:36:50]} {[%emt 00:47:32]} cxd5 {[%clk 00:41:56]} {[%emt 00:04:20]} 19. cxd5
{[%clk 00:37:14]} {[%emt 00:00:08]} Rc8 {[%clk 00:35:17]} {[%emt 00:07:08]} 20.
Bc3 {[%clk 00:36:42]} {[%emt 00:01:01]} b5 {[%clk 00:27:12]} {[%emt 00:08:36]}
21. Nh4 {[%clk 00:23:21]} {[%emt 00:13:51]} Bxe4 {[%clk 00:19:38]} {[%emt
00:08:04]} 22. Bxe4 {[%clk 00:23:42]} {[%emt 00:00:08]} Rxf2 {[%clk 00:19:22]}
{[%emt 00:00:46]} 23. Qd3 {[%clk 00:18:01]} {[%emt 00:06:11]} b4 {[%clk
00:12:46]} {[%emt 00:07:07]} 24. Bh7+ {[%clk 00:18:12]} {[%emt 00:00:19]} Kh8
{[%clk 00:12:03]} {[%emt 00:01:13]} 25. Ng6+ {[%clk 00:17:51]} {[%emt
00:00:51]} Kxh7 {[%clk 00:12:20]} {[%emt 00:00:14]} 26. Nxe5+ {[%clk 00:18:07]}
{[%emt 00:00:13]} Kg8 {[%clk 00:11:56]} {[%emt 00:00:54]} 27. Nxg4 {[%clk
00:12:09]} {[%emt 00:06:28]} Qg5+ {[%clk 00:10:51]} {[%emt 00:01:35]} 28. Kb1
{[%clk 00:05:39]} {[%emt 00:06:59]} bxc3 {[%clk 00:11:10]} {[%emt 00:00:11]} 29.
Nxf2 {[%clk 00:06:01]} {[%emt 00:00:08]} c2+ {[%clk 00:11:31]} {[%emt
00:00:10]} 30. Ka1 {[%clk 00:05:33]} {[%emt 00:00:57]} c1=Q+ {[%clk 00:11:40]}
{[%emt 00:00:21]} 0-1